bitfinex-derivatives/quotes_ETHF0:USTF0_20250621
["timestamp","ask_amount","ask_price","bid_price","bid_amount"]
[1750549666266,3.2078,2228.1,2226.6,49.57087]
[1750549666267,5.8539,2228.6,2227.9,3.2078]
[1750549666476,5.8539,2228.6,2227.3,50.187]
[1750549666477,3.40846696,2228.5,2228.3,0.89727]
[1750549666680,3.40846696,2228.1,2227.7,51.04448]
[1750549666878,3.40846696,2228.1,2227.6,3.2078]
[1750549667182,3.40846696,2227.8,2227.6,3.2078]
[1750549667476,3.40846696,2228.0,2227.8,0.89745]
[1750549667980,5.8539,2228.4,2228.0,0.89736]
[1750549668172,3.40846696,2228.0,2227.7,5.5731]
[1750549668481,3.40846696,2227.8,2227.7,0.89751]
[1750549668779,3.40846696,2227.9,2227.8,0.89747]
[1750549668980,3.40846696,2228.0,2227.8,0.89747]
[1750549669180,3.40846696,2228.0,2227.6,3.2078]
[1750549669378,3.2078,2228.2,2227.9,0.06847599]
[1750549669883,3.40846696,2228.0,2227.9,0.06847599]
[1750549670273,8.40846696,2228.0,2227.9,0.06847599]
[1750549670473,3.40846696,2228.0,2227.9,0.06847599]
[1750549670777,8.40846696,2228.0,2227.9,0.06847599]
[1750549670980,3.2078,2228.2,2228.1,0.89735]
[1750549671177,3.2078,2228.8,2228.3,0.89724]
[1750549671382,4.3609,2229.1,2227.9,0.06847599]
[1750549671383,3.40846696,2228.2,2227.9,0.06847599]
[1750549671582,3.40846696,2228.0,2227.9,0.06847599]
[1750549671778,3.40846696,2228.0,2227.6,0.89753]
[1750549671779,3.40846696,2228.0,2227.6,0.89752]
[1750549671984,3.40846696,2227.8,2227.3,3.2078]
[1750549672281,3.40846696,2227.8,2227.6,3.2078]
[1750549672486,3.2078,2228.5,2227.9,0.96588599]
[1750549672685,3.2078,2228.5,2228.2,0.89728]
[1750549672686,3.40846696,2228.3,2228.2,0.89728]
[1750549672877,4.10501,2228.5,2228.0,3.2078]
[1750549673075,3.40846696,2228.1,2227.9,0.06847599]
[1750549673279,3.40846696,2228.0,2227.0,3.2078]
[1750549673483,3.2078,2227.6,2227.0,3.2078]
[1750549673781,3.40846696,2227.2,2227.0,3.2078]
[1750549673973,3.40846696,2227.1,2227.0,3.2078]
[1750549674178,3.40846696,2227.4,2227.0,3.2078]
[1750549674379,3.40846696,2227.4,2227.2,0.89769]
[1750549674572,3.40846696,2227.1,2227.0,4.10557]
[1750549674777,3.40846696,2227.2,2227.0,4.10557]
[1750549674979,3.40846696,2227.1,2227.0,3.2078]
[1750549675180,3.40846696,2227.1,2226.4,0.898]
[1750549675380,3.40846696,2226.6,2226.4,0.898]
[1750549675683,3.40846696,2226.7,2226.3,3.2078]
[1750549675986,3.40846696,2226.7,2226.5,3.2078]
[1750549676172,3.40846696,2226.6,2226.1,4.10593]
[1750549676376,3.2078,2227.0,2226.1,4.10593]
[1750549676377,3.40846696,2226.5,2226.1,3.2078]
[1750549676582,3.40846696,2226.5,2226.4,0.89803]
[1750549676786,4.1056,2227.0,2226.3,0.89805]
[1750549676979,3.2078,2227.3,2225.5,2.309]
[1750549677181,3.40846696,2225.9,2225.6,3.2078]
[1750549677380,0.89825,2225.9,2225.6,3.2078]
[1750549677579,2.91268209,2225.7,2225.5,2.309]
[1750549677883,3.2078,2226.4,2225.5,2.309]
[1750549678190,3.2078,2227.2,2226.1,3.2078]
[1750549678385,2.91268209,2226.6,2226.2,6.73939]
[1750549678580,3.2078,2227.2,2226.4,3.2078]
[1750549678785,2.91268209,2227.0,2226.8,0.89786]
[1750549678981,2.91268209,2226.9,2226.4,3.2078]
[1750549679281,3.2078,2226.8,2226.0,3.2078]
[1750549679580,4.2135,2227.6,2226.0,3.2078]
[1750549679581,0.89785,2226.9,2226.1,5.8413]
[1750549679785,2.91268209,2226.5,2226.4,3.2078]
[1750549679980,2.91268209,2226.5,2226.1,3.2078]
[1750549680188,2.91268209,2226.2,2226.0,3.2078]
[1750549680386,2.91268209,2226.1,2225.7,3.2078]
[1750549680778,3.2078,2226.7,2225.7,3.2078]
[1750549681087,2.91268209,2226.5,2226.3,3.2078]
[1750549681283,2.91268209,2226.4,2225.9,52.0478]
[1750549681486,3.2078,2228.2,2227.9,0.06847599]
[1750549681685,2.2424,2229.1,2227.9,0.06847599]
[1750549681686,0.08976257,2228.1,2227.9,0.06847599]
[1750549681984,12.49214502,2230.3,2227.9,5.74817599]
[1750549681985,3.2078,2228.9,2227.9,5.74817599]
[1750549682188,2.91268209,2228.6,2228.0,3.2078]
[1750549682382,2.91268209,2228.6,2228.5,0.89719]
[1750549682582,3.2078,2229.3,2228.5,48.801]
[1750549682893,3.2078,2229.2,2228.4,3.2078]
[1750549683105,0.89691,2229.2,2228.7,3.2078]
[1750549683296,2.91268209,2228.8,2228.4,9.1865]
[1750549683591,3.2078,2228.9,2228.4,9.1865]
[1750549683781,2.91268209,2228.9,2228.4,10.0837]
[1750549683980,4.10469,2229.3,2228.4,10.0837]
[1750549683981,2.91268209,2228.8,2228.4,9.1865]
[1750549684188,2.91268209,2228.5,2228.4,2.309]
[1750549684693,2.24198,2229.5,2228.4,2.309]
[1750549684694,3.2078,2229.5,2228.4,5.58527599]
[1750549684891,2.91268209,2228.7,2228.4,5.58527599]
[1750549685092,2.91268209,2229.0,2228.4,5.58527599]
[1750549685397,2.91268209,2229.0,2228.5,5.9787]
[1750549685589,2.91268209,2228.5,2228.4,2.37747599]
[1750549685890,3.2078,2228.1,2226.5,3.2078]
[1750549686089,4.88033044,2228.5,2224.2,0.45934508]
[1750549686090,6.12048209,2226.6,2225.8,5.7785]
[1750549686286,2.91268209,2226.6,2225.9,3.2078]
[1750549686487,3.2078,2227.2,2226.2,3.2078]
[1750549686683,3.2078,2227.2,2225.8,5.7785]
[1750549686684,1.56144805,2227.1,2225.9,3.2078]
[1750549686887,2.91268209,2226.6,2226.1,3.2078]
[1750549687189,2.91268209,2226.9,2226.5,3.2078]
[1750549687387,2.91268209,2226.9,2225.9,5.7785]
[1750549687388,3.2078,2227.5,2226.8,3.2078]
[1750549687588,3.2078,2227.2,2226.6,5.7785]
[1750549687892,2.91268209,2226.9,2226.6,5.7785]
[1750549688284,2.91268209,2226.9,2226.4,3.2078]
[1750549688285,2.91268209,2226.7,2226.1,3.2078]
[1750549688592,2.91268209,2226.8,2226.3,5.7785]
[1750549688888,2.91268209,2226.4,2226.1,3.2078]
[1750549689190,2.91268209,2226.7,2226.1,3.2078]
[1750549689491,2.91268209,2226.4,2226.1,3.2078]
[1750549689894,0.08979078,2227.4,2226.1,8.2078]
[1750549690090,4.47264125,2227.3,2226.7,3.2078]
[1750549690284,0.08979078,2227.4,2226.4,3.2078]
[1750549690285,2.91268209,2226.6,2226.4,3.2078]
[1750549690692,2.91268209,2226.5,2226.4,3.2078]
[1750549690894,9.50557209,2226.5,2226.4,3.2078]
[1750549691088,10.16357113,2226.5,2226.4,3.2078]
[1750549691290,2.91268209,2226.5,2226.4,3.2078]
[1750549691484,8.81067209,2226.5,2226.4,3.2078]
[1750549691685,1.55529041,2226.5,2225.9,3.2078]
[1750549691884,3.2078,2227.5,2226.2,3.2078]
[1750549692081,3.2078,2227.5,2226.0,6.0131]
[1750549692082,8.20898812,2227.9,2226.6,3.2078]
[1750549692283,3.2078,2227.2,2226.7,6.0131]
[1750549692491,2.24479,2226.7,2225.9,3.2078]
[1750549692688,6.12048209,2226.0,2225.0,6.0131]
[1750549692883,2.24517,2226.4,2225.0,6.0131]
[1750549692884,2.91268209,2225.5,2225.0,6.91166]
[1750549693087,5.6752,2225.9,2225.0,6.0131]
[1750549693088,3.2078,2225.4,2225.0,6.0131]
[1750549693294,2.91268209,2225.3,2224.8,3.2078]
[1750549693493,5.6752,2225.3,2224.8,3.2078]
[1750549693694,3.2078,2225.4,2224.8,3.2078]
[1750549693899,3.2078,2225.1,2224.6,3.2078]
[1750549694096,3.2078,2224.9,2224.8,0.89868]
[1750549694395,2.91268209,2225.4,2224.8,3.2078]
[1750549694585,3.2078,2226.5,2225.2,2.24629]
[1750549694793,4.14717698,2227.3,2224.9,49.63854]
[1750549694794,3.2078,2227.2,2226.1,3.2078]
[1750549694989,2.91268209,2226.8,2226.3,3.2078]
[1750549695294,2.91268209,2226.5,2225.9,50.9798]
[1750549695489,2.91268209,2226.5,2226.0,8.8994]
[1750549695693,2.91268209,2226.2,2225.8,3.2078]
[1750549695894,0.89797,2226.6,2226.1,3.2078]
[1750549696098,2.91268209,2226.4,2225.9,3.2078]
[1750549696398,2.91268209,2226.3,2226.0,5.6916]
[1750549696693,2.91268209,2226.3,2226.1,3.2078]
[1750549696890,5.5615,2226.7,2226.0,8.8994]
[1750549697095,6.12048209,2226.5,2226.0,8.8994]
[1750549697298,2.91268209,2227.6,2227.3,0.89764]
[1750549697595,3.00246884,2227.5,2227.3,0.89763]
[1750549697796,0.08979078,2227.4,2227.1,3.2078]
[1750549698194,6.12048209,2227.2,2226.6,3.2078]
[1750549698400,2.91268209,2226.3,2225.7,3.2078]
[1750549698700,2.91268209,2226.7,2226.2,0.89811]
[1750549698994,0.08980288,2227.1,2226.6,3.2078]
[1750549699201,0.08980288,2227.1,2227.0,3.2078]
[1750549699391,2.88e-06,2227.1,2227.0,3.2078]
[1750549700000,7.91268497,2227.1,2226.7,9.0532]
[1750549700198,2.88e-06,2227.1,2227.0,4.10559]
[1750549700393,2.91268209,2227.0,2226.6,3.2078]
[1750549700593,2.88e-06,2227.1,2226.6,3.2078]
[1750549700798,2.88e-06,2227.1,2226.7,5.7852]
[1750549701001,2.91268209,2227.0,2226.8,3.2078]
[1750549701207,3.20780288,2227.1,2226.5,3.2078]
[1750549701399,2.91268209,2226.7,2226.5,3.2078]
[1750549701592,2.88e-06,2227.1,2227.0,0.89779]
[1750549701795,2.88e-06,2227.1,2227.0,4.10559]
[1750549701997,49.93478812,2228.4,2227.0,4.10559]
[1750549701998,2.53378812,2228.5,2228.4,0.89723]
[1750549702202,8.847,2230.1,2228.4,50.5888]
[1750549702395,3.2078,2229.1,2228.7,3.2078]
[1750549702595,5.6392,2230.1,2228.7,3.2078]
[1750549702596,3.2078,2229.2,2228.7,3.2078]
[1750549702997,5.6392,2229.1,2228.7,3.2078]
[1750549703191,3.2078,2230.6,2229.0,3.2078]
[1750549703399,3.2078,2229.6,2229.1,3.2078]
[1750549703907,3.2078,2229.2,2228.7,3.2078]
[1750549704303,3.2078,2230.0,2229.0,3.2078]
[1750549704608,3.2078,2230.4,2229.7,3.2078]
[1750549704793,4.10408,2230.8,2229.8,6.0312]
[1750549704994,3.2078,2230.5,2230.0,3.2078]
[1750549705198,5.927,2230.7,2230.1,6.0312]
[1750549705613,5.927,2230.7,2230.3,3.2078]
[1750549705907,5.927,2230.7,2230.1,6.0312]
[1750549706102,3.2078,2230.8,2230.4,0.89642]
[1750549706301,3.2078,2230.8,2230.3,3.2078]
[1750549706502,5.927,2230.7,2230.3,3.2078]
[1750549706998,5.927,2230.7,2230.2,3.2078]
[1750549707197,4.4064,2231.2,2230.2,3.2078]
[1750549707198,3.2078,2232.3,2230.6,3.2078]
[1750549707401,3.2078,2231.2,2230.6,3.2078]
[1750549707708,0.89631,2230.7,2230.3,3.2078]
[1750549707903,3.2078,2231.1,2230.3,3.2078]
[1750549708103,9.826,2231.5,2230.4,5.7209]
[1750549708307,0.89605,2231.4,2230.6,4.10412]
[1750549708496,3.2078,2231.1,2230.6,3.2078]
[1750549708811,5.7222,2231.0,2230.3,3.2078]
[1750549709104,3.2078,2231.8,2230.9,3.2078]
[1750549709303,3.2078,2232.2,2231.2,3.2078]
[1750549709509,3.2078,2232.2,2231.5,3.2078]
[1750549709706,5.7222,2232.1,2231.6,0.89594]
[1750549709908,4.5139,2233.0,2231.8,3.2078]
[1750549710105,3.2078,2232.1,2231.8,3.2078]
[1750549710305,3.2078,2232.0,2231.3,5.7209]
[1750549710499,3.2078,2231.4,2230.8,4.10403]
[1750549710704,0.89601,2231.5,2230.8,3.2078]
[1750549710904,9.6305,2231.3,2230.8,3.2078]
[1750549711209,6.4227,2231.3,2230.8,3.2078]
[1750549711613,3.2078,2231.9,2231.1,3.2078]
[1750549711911,3.2078,2231.5,2230.7,3.2078]
[1750549712207,3.2078,2231.6,2230.7,3.2078]
[1750549712605,3.2078,2231.9,2230.7,3.2078]
[1750549712913,3.2078,2231.8,2231.4,3.2078]
[1750549713213,3.2078,2232.6,2231.4,3.2078]
[1750549713410,3.2078,2232.2,2231.9,0.8958]
[1750549713610,6.1743,2232.5,2232.0,3.2078]
[1750549713811,3.2078,2232.9,2232.2,0.89569]
[1750549714012,4.10314,2233.2,2232.3,0.89563]
[1750549714312,9.3821,2232.8,2232.1,5.9996]
[1750549714509,6.1743,2232.8,2232.4,0.89559]
[1750549714816,3.2078,2233.5,2232.6,3.2078]
[1750549715016,9.3821,2234.0,2232.9,3.2078]
[1750549715215,0.89502,2233.9,2233.2,3.2078]
[1750549715412,6.1743,2233.8,2233.2,9.2074]
[1750549715719,3.2078,2234.4,2233.3,3.2078]
[1750549715911,4.10276,2234.1,2233.3,0.89523]
[1750549716211,3.2078,2234.9,2234.0,3.2078]
[1750549716409,77.0,2235.0,2234.2,3.2078]
[1750549716611,3.2078,2234.9,2234.1,5.9438]
[1750549716914,77.0,2235.0,2234.4,3.2078]
[1750549717114,3.2078,2234.8,2234.1,3.2078]
[1750549717414,77.0,2235.0,2234.4,3.2078]
[1750549717815,77.0,2235.0,2234.7,3.2078]
[1750549718014,4.1539,2236.9,2234.7,3.2078]
[1750549718015,3.2078,2237.5,2235.7,2.23573]
[1750549718316,8.9501,2236.4,2235.9,3.2078]
[1750549718511,8.9501,2236.2,2235.6,3.2078]
[1750549718708,8.9501,2235.6,2235.3,3.2078]
[1750549718914,8.9501,2235.6,2235.0,3.2078]
[1750549719111,6.2666,2235.8,2235.0,3.2078]
[1750549719314,3.2078,2236.8,2235.7,3.2078]
[1750549719516,3.2078,2236.8,2234.8,53.12674]
[1750549719517,3.2078,2236.8,2235.9,3.2078]
[1750549719714,7.3867,2238.0,2237.0,0.89376]
[1750549720013,8.9501,2237.2,2236.7,46.596]
[1750549720214,8.9501,2237.4,2236.9,3.2078]
[1750549720410,3.2078,2237.4,2236.9,3.2078]
[1750549720626,3.2078,2237.4,2235.7,4.4257]
[1750549720627,0.89384,2236.9,2235.8,3.2078]
[1750549720815,8.9501,2236.2,2235.8,3.2078]
[1750549721016,8.9501,2235.9,2235.5,3.2078]
[1750549721211,8.9501,2235.8,2235.2,3.2078]
[1750549721412,3.2078,2236.9,2235.5,3.2078]
[1750549721620,8.9501,2236.9,2236.4,3.2078]
[1750549721915,8.9501,2236.9,2235.6,8.2226]
[1750549721916,12.1579,2236.6,2236.0,3.2078]
[1750549722119,8.9501,2236.4,2235.9,3.2078]
[1750549722314,8.9501,2236.8,2236.2,3.2078]
[1750549722515,3.2078,2237.5,2236.5,3.2078]
[1750549722714,8.9501,2236.8,2236.5,3.2078]
[1750549722926,3.2078,2237.2,2236.5,3.2078]
[1750549723117,0.06847599,2236.6,2236.5,3.2078]
[1750549723312,0.06847599,2236.6,2236.2,3.2078]
[1750549723509,3.2078,2237.0,2236.5,3.2078]
[1750549723712,3.2078,2237.3,2236.4,3.2078]
[1750549723913,3.2078,2237.4,2236.4,3.2078]
[1750549724117,8.9501,2237.8,2237.6,0.89354]
[1750549724315,8.9501,2237.8,2237.2,3.2078]
[1750549724316,3.2078,2238.6,2237.7,3.2078]
[1750549724514,8.9501,2237.8,2237.4,9.1515]
[1750549724717,12.1579,2237.8,2237.3,3.2078]
[1750549724918,8.9501,2237.4,2237.3,3.2078]
[1750549725114,8.9501,2237.4,2237.0,46.375]
[1750549725314,3.2078,2237.5,2237.0,46.375]
[1750549725519,8.9501,2237.4,2237.2,3.2078]
[1750549725723,15.0324,2237.4,2236.8,3.2078]
[1750549725920,6.0823,2237.4,2236.8,3.2078]
[1750549726116,3.2078,2238.0,2237.2,0.89366]
[1750549726313,8.9501,2237.4,2237.1,3.2078]
[1750549726521,6.0823,2237.8,2236.6,3.2078]
[1750549726522,8.9501,2237.0,2236.6,3.2078]
[1750549726722,8.9501,2236.9,2236.6,3.2078]
[1750549727228,8.9501,2236.9,2236.4,46.188]
[1750549727527,15.0324,2236.8,2236.4,46.188]
[1750549728023,6.0823,2236.8,2236.4,46.188]
[1750549728224,15.0324,2236.8,2236.4,47.08199]
[1750549728423,3.2078,2237.1,2236.6,3.2078]
[1750549728627,8.9501,2237.0,2236.7,0.89386]
[1750549728826,8.9501,2236.9,2236.6,4.10174]
[1750549729137,15.0349,2236.9,2236.4,46.188]
[1750549729422,3.2078,2237.5,2236.6,3.2078]
[1750549729725,8.9501,2237.6,2237.3,4.10143]
[1750549730028,8.9501,2237.6,2237.4,0.89359]
[1750549730226,8.9501,2237.6,2237.3,4.10144]
[1750549730430,3.2078,2238.3,2237.3,48.9708]
[1750549730625,3.2078,2239.2,2238.2,3.2078]
[1750549730825,2.23153,2240.0,2238.2,3.2078]
[1750549730826,7.74021,2238.3,2238.2,3.2078]
[1750549731222,6.3362,2238.7,2238.2,49.0028]
[1750549731423,6.3362,2239.2,2238.6,3.2078]
[1750549731625,5.99e-06,2239.5,2238.7,4.47]
[1750549731828,3.2078,2242.0,2241.9,0.89183]
[1750549732028,3.2078,2242.0,2241.9,47.63083]
[1750549732029,6.06e-06,2242.0,2241.9,47.63083]
[1750549732224,5.03599999,2242.9,2242.8,0.89147]
[1750549732533,3.2078,2244.2,2242.8,3.2078]
[1750549732722,3.2078,2244.2,2242.7,46.731]
[1750549732723,0.37418667,2243.2,2243.1,3.2078]
[1750549733029,3.2078,2243.4,2242.8,3.2078]
[1750549733233,0.37418667,2243.0,2242.2,3.2078]
[1750549733431,0.37418667,2242.9,2242.2,3.2078]
[1750549733631,0.37418667,2242.3,2241.9,3.2078]
[1750549734026,3.2078,2242.9,2241.9,3.2078]
[1750549734230,3.2078,2242.5,2241.9,3.2078]
[1750549734431,0.37418667,2242.2,2241.9,3.2078]
[1750549734625,0.37418667,2242.1,2241.9,3.2078]
[1750549734835,0.37418667,2242.0,2241.4,4.09982]
[1750549735031,3.2078,2242.7,2241.8,3.2078]
[1750549735231,3.2078,2242.7,2241.1,51.632]
[1750549735232,3.2078,2243.5,2242.5,3.2078]
[1750549735436,3.2078,2243.5,2242.4,3.2078]
[1750549735625,3.2078,2242.6,2242.0,3.2078]
[1750549735830,2.59811422,2244.5,2242.0,3.2078]
[1750549735831,0.37109422,2244.5,2242.1,46.737]
[1750549736030,3.2078,2243.3,2241.8,3.2078]
[1750549736333,3.2078,2242.9,2241.8,3.2078]
[1750549736536,0.89147,2242.8,2241.8,3.2078]
[1750549736732,3.2078,2242.4,2241.8,3.2078]
[1750549737327,50.3728,2243.7,2242.2,3.2078]
[1750549737533,3.2078,2243.1,2242.3,0.89164]
[1750549737732,48.05615,2243.7,2242.8,3.2078]
[1750549737929,47.165,2243.7,2242.8,3.2078]
[1750549738128,3.2078,2243.9,2242.8,3.2078]
[1750549738328,3.2078,2243.3,2242.5,49.9218]
[1750549738537,3.2078,2243.3,2242.8,3.2078]
[1750549738832,3.2078,2243.3,2242.9,0.89143]
[1750549739037,3.2078,2243.3,2242.8,4.09926]
[1750549739237,3.2078,2243.8,2243.2,3.2078]
[1750549739538,3.2078,2243.8,2242.9,3.2078]
[1750549739839,4.09886,2243.9,2242.9,4.09922]
[1750549740138,3.2078,2244.0,2243.4,3.2078]
[1750549740435,3.2078,2244.0,2241.0,4.46085]
[1750549740436,3.2078,2243.5,2241.9,3.2078]
[1750549740633,3.2078,2242.9,2241.5,3.2078]
[1750549740834,3.2078,2242.3,2241.5,3.2078]
[1750549741035,3.2078,2242.1,2241.0,3.2078]
[1750549741231,3.2078,2242.1,2240.7,12.41164104]
[1750549741232,3.2078,2241.5,2240.7,3.2078]
[1750549741432,0.89199,2241.5,2240.4,3.2078]
[1750549741635,0.89217,2241.1,2240.4,3.2078]
[1750549741839,0.89286,2239.3,2239.2,0.66774586]
[1750549742035,0.89286,2239.3,2238.1,3.2078]
[1750549742036,3.2078,2239.3,2238.1,3.2078]
[1750549742342,3.2078,2239.9,2239.2,3.2078]
[1750549742533,4.5118,2240.7,2238.2,12.41164104]
[1750549742534,3.2078,2240.4,2239.8,3.2078]
[1750549742728,3.2078,2241.1,2240.3,3.2078]
[1750549742930,3.2078,2241.1,2240.5,3.2078]
[1750549743144,3.2078,2241.5,2240.2,3.2078]
[1750549743335,3.2078,2240.3,2239.3,3.2078]
[1750549743538,3.2078,2240.3,2238.9,47.113]
[1750549743539,3.2078,2240.3,2239.5,3.2078]
[1750549743738,3.2078,2240.9,2240.1,3.2078]
[1750549743934,6.55679,2242.2,2239.6,0.89274]
[1750549743935,3.2078,2241.2,2240.4,3.2078]
[1750549744534,3.2078,2241.2,2240.2,3.2078]
[1750549744834,3.2078,2240.9,2239.9,3.2078]
[1750549745339,3.2078,2242.1,2240.8,3.2078]
[1750549745643,3.2078,2242.8,2241.7,3.2078]
[1750549745829,4.3275,2243.4,2242.0,3.2078]
[1750549745830,3.2078,2243.1,2242.0,3.2078]
[1750549746034,3.2078,2243.1,2242.1,3.2078]
[1750549746227,0.8914,2243.0,2241.8,3.2078]
[1750549746436,12.41164104,2243.2,2241.5,3.2078]
[1750549746437,3.2078,2242.7,2241.5,3.2078]
[1750549746934,3.2078,2242.7,2239.4,2.23202]
[1750549746935,3.2078,2241.8,2240.4,3.2078]
[1750549747138,3.2078,2241.9,2240.3,12.41164104]
[1750549747333,3.2078,2241.6,2240.7,3.2078]
[1750549747730,0.89172,2242.2,2241.5,3.2078]
[1750549747936,3.2078,2242.6,2241.6,3.2078]
[1750549748134,3.2078,2242.9,2241.9,3.2078]
[1750549748338,0.89155,2242.6,2241.9,3.2078]
[1750549748643,3.2078,2243.3,2241.4,6.5277]
[1750549748937,3.2078,2243.3,2242.2,3.2078]
[1750549749143,3.2078,2243.6,2242.5,3.2078]
[1750549749436,3.2078,2243.6,2242.6,0.89154]
[1750549749637,3.2078,2244.0,2243.1,3.2078]
[1750549749842,3.2078,2244.0,2242.6,6.4062]
[1750549749843,3.2078,2243.7,2242.8,3.2078]
[1750549750042,3.2078,2244.2,2243.0,3.2078]
[1750549750547,1.26191422,2244.5,2243.7,3.2078]
[1750549750736,1.26189422,2244.5,2243.7,3.2078]
[1750549750941,2.2261,2245.5,2243.1,6.4062]
[1750549750942,3.2078,2245.6,2244.4,3.2078]
[1750549751136,3.2078,2245.3,2244.0,3.2078]
[1750549751436,0.89041,2245.5,2244.3,3.2078]
[1750549751636,3.2078,2245.1,2244.0,3.2078]
[1750549751836,3.2078,2245.8,2244.6,3.2078]
[1750549752043,0.999,2245.9,2243.9,6.4062]
[1750549752044,3.2078,2245.5,2245.0,3.2078]
[1750549752244,0.999,2245.9,2245.3,3.2078]
[1750549752438,0.999,2246.0,2245.6,3.2078]
[1750549752645,0.999,2246.1,2245.6,3.2078]
[1750549752836,0.999,2246.1,2245.7,3.2078]
[1750549753144,0.02127109,2246.3,2246.2,0.89012]
[1750549753337,3.2078,2247.6,2246.0,3.2078]
[1750549753541,6.1163,2247.5,2246.5,3.2078]
[1750549753744,3.2078,2246.7,2246.1,6.5072]
[1750549754050,9.3241,2247.5,2246.0,3.2078]
[1750549754239,3.2078,2247.5,2246.9,3.2078]
[1750549754439,3.2078,2247.8,2246.9,3.2078]
[1750549754647,3.2078,2248.1,2247.2,3.2078]
[1750549754845,6.1163,2247.7,2247.5,3.2078]
[1750549755043,0.32381528,2248.4,2247.6,3.2078]
[1750549755247,0.32381528,2248.4,2247.9,3.2078]
[1750549755441,5.28e-06,2248.4,2248.0,50.1918]
[1750549755648,6.4171,2249.7,2248.3,3.2078]
[1750549755949,3.2078,2250.2,2249.1,3.2078]
[1750549756138,6.4171,2250.1,2249.0,3.2078]
[1750549756339,3.2078,2250.6,2249.3,3.2078]
[1750549756543,3.2078,2250.6,2250.1,3.2078]
[1750549756751,3.2078,2250.6,2250.3,0.88849]
[1750549757048,2.30101,2251.6,2250.3,3.2078]
[1750549757241,3.2078,2252.9,2251.5,3.2078]
[1750549757445,9.32e-06,2252.3,2252.1,3.2078]
[1750549757642,9.32e-06,2252.3,2251.6,5.9551]
[1750549757945,9.32e-06,2252.3,2252.0,3.2078]
[1750549758146,9.32e-06,2252.3,2251.7,3.2078]
[1750549758850,9.32e-06,2252.3,2252.0,3.2078]
[1750549759044,2.21688,2254.8,2252.0,3.2078]
[1750549759045,3.2078,2253.7,2252.1,3.2078]
[1750549759245,3.2078,2254.6,2253.6,3.2078]
[1750549759546,4.103,2256.0,2253.3,3.2078]
[1750549759547,3.2078,2254.8,2253.3,3.2078]
[1750549759855,3.2078,2255.2,2254.3,3.2078]
[1750549760149,3.2078,2255.2,2254.5,3.2078]
[1750549760353,6.0479,2255.1,2254.5,3.2078]
[1750549760553,0.08869179,2255.0,2254.8,3.2078]
[1750549760847,3.2078,2254.9,2254.3,3.2078]
[1750549761053,6.0479,2254.8,2254.3,3.2078]
[1750549761243,0.08869179,2255.0,2254.3,3.2078]
[1750549761648,12.24589614,2256.9,2254.3,3.2078]
[1750549761649,9.4019,2258.7,2256.6,3.2078]
[1750549761846,3.2078,2258.3,2256.9,3.2078]
[1750549762049,3.2078,2258.1,2256.9,3.2078]
[1750549762243,6.1941,2258.0,2257.5,3.2078]
[1750549762450,6.1941,2258.0,2256.9,3.2078]
[1750549762648,46.934,2259.7,2256.7,6.1556]
[1750549762649,3.2078,2258.7,2256.7,6.1556]
[1750549762964,3.2078,2257.8,2257.1,0.88582]
[1750549763253,3.2078,2258.1,2257.2,6.1556]
[1750549763760,6.1941,2258.0,2257.0,3.2078]
[1750549763945,3.2078,2257.8,2257.1,6.1556]
[1750549764147,3.2078,2257.7,2257.1,6.1556]
[1750549764454,3.2078,2258.6,2257.4,3.2078]
[1750549764654,3.2078,2257.8,2257.1,3.2078]
[1750549764957,3.2078,2257.2,2256.1,3.2078]
[1750549765258,3.2078,2256.7,2255.7,3.2078]
[1750549765463,46.883,2256.7,2255.4,3.2078]
[1750549765661,3.2078,2257.6,2255.7,3.2078]
[1750549765853,3.2078,2258.7,2256.9,3.2078]
[1750549766051,3.2078,2258.7,2257.0,6.1448]
[1750549766258,3.2078,2259.4,2258.6,3.2078]
[1750549766460,3.2078,2259.7,2258.9,3.2078]
[1750549766657,3.2078,2259.3,2258.9,3.2078]
[1750549766868,2.7078,2259.0,2257.2,3.2078]
[1750549767156,3.2078,2257.4,2255.9,3.2078]
[1750549767356,3.2078,2256.4,2255.5,3.2078]
[1750549767560,3.2078,2259.5,2256.9,3.2078]
[1750549767758,3.2078,2258.9,2258.5,3.2078]
[1750549767960,3.2078,2259.6,2258.8,3.2078]
[1750549768150,3.2078,2260.0,2258.8,3.2078]
[1750549768465,46.883,2260.6,2259.8,0.88477]
[1750549768655,46.883,2260.6,2259.7,3.2078]
[1750549768855,46.883,2260.6,2259.3,3.2078]
[1750549769154,0.88459,2260.3,2259.3,3.2078]
[1750549769359,3.2078,2260.3,2259.3,3.2078]
[1750549769665,3.2078,2260.3,2257.3,4.42872]
[1750549769666,3.2078,2260.0,2258.5,3.2078]
[1750549769960,3.2078,2259.8,2258.5,3.2078]
[1750549770157,3.2078,2259.5,2259.0,3.2078]
[1750549770356,4.09257,2259.8,2259.2,3.2078]
[1750549770662,3.2078,2259.8,2258.9,3.2078]
[1750549770860,46.883,2260.6,2258.6,3.2078]
[1750549770861,3.2078,2259.0,2258.6,3.2078]
[1750549771056,46.816,2258.9,2258.6,3.2078]
[1750549771256,295.0264,2260.4,2259.6,0.88485]
[1750549771257,46.816,2260.2,2259.6,0.88485]
[1750549771464,3.2078,2259.7,2259.0,3.2078]
[1750549771663,3.2078,2259.7,2253.6,44.35963]
[1750549771664,0.88529,2258.5,2257.5,0.88565]
[1750549771965,50.0238,2258.4,2256.9,3.2078]
[1750549772160,292.603,2259.2,2257.3,3.2078]
[1750549772161,3.2078,2258.1,2257.3,3.2078]
[1750549772358,3.2078,2258.1,2256.6,6.3047]
[1750549772359,3.2078,2258.5,2257.9,6.41559333]